Cogmind - Beta 13 @@@ ROGUE MODE // 2024.04.25 @ 18:00:04 Player: Fusha Result: Core destroyed Performance ------------- Evolutions (5) 2500 Regions Visited (11) 2200 Robots Destroyed (122) 610 Value Destroyed (4351) 4351 Prototype IDs (35) 700 Alien Tech Used (0) 0 Bonus (1233) 1233 TOTAL SCORE: 11594 Bonus ------- High Alert Combat Kills 310 Follower Combat Kills 60 Entered Garrisons 200 Used RIF Installer 500 Aligned with FarCom 300 Friendly Fire -137 Cogmind --------- Core Integrity 0/1000 Matter 120/300 Energy 315/315 System Corruption 0% Temperature Critical (500) Movement Rolling (110) Ox2 Location -5/Factory Parts ------- > --- POWER (2) -------- Neutrino Core > --- PROPULSION (6) --- Flexi-carbon Leg Wheel Wheel > --- UTILITY (5) ------ Targeting Computer Advanced Targeting Computer Advanced Targeting Computer Advanced Targeting Computer Corruption Screen > --- WEAPON (4) ------- Mass Driver Enhanced Gauss Cannon Enhanced Gauss Cannon Enhanced Gauss Cannon > --- INVENTORY (5) ---- Recoil Nullifier Gauss Rifle Peak State ------------ > --- POWER ------------ Improved Deuterium Engine Cold Fusion Reactor > --- PROPULSION ------- Improved Hover Unit Aerolev Unit Aerolev Unit Aerolev Unit Gravmag System Field Propulsion Drive > --- UTILITY ---------- Improved Terrain Scanner Core Analyzer Advanced Shield Generator Hacking Suite System Shield > --- WEAPON ----------- Plasma Sword Plasma Sword Plasma Sword Plasma Sword > --- INVENTORY -------- Corruption Screen Plasma Sword Plasma Sword Plasma Sword [Rating: 83] Favorites ----------- Power Light Ion Engine Engine Light Ion Engine Power Core Light Nuclear Core Reactor Cold Fusion Reactor Propulsion Aluminum Leg Leg Aluminum Leg Wheel Wheel Hover Unit Aerolev Unit Flight Unit Flying Fortress v7 Utility Improved Heat Sink Device Improved Heat Sink Storage Small Storage Unit Processor Targeting Computer Hackware Hacking Suite Protection Improved Light Armor Plating Weapon Improved Assault Rifle Energy Gun Gatling Laser Energy Cannon Heavy Ion Cannon Ballistic Gun Improved Assault Rifle Ballistic Cannon Enhanced Gauss Cannon Impact Weapon Shock Maul Slashing Weapon Plasma Sword Build | -11 -10 -9 -9 -9 -8 -8 -7 -7 -7 -6 -5 ------- Run | Yrd Mat Mat Min Exi Min Mat Fac Gar Fac Fac Fac Slots Evolved 10 | . . 2 . . . 2 2 . . 2 2 Power 1 | . . . . . . . . . . . 1 Propulsion 4 | . . . . . . 2 . . . 2 . Utility 3 | . . . . . . . 2 . . . 1 Weapon 2 | . . 2 . . . . . . . . . Parts Attached 141 | 6 4 11 . . 3 23 3 27 11 18 35 Power 17 | 1 . 1 . . 1 3 . 4 1 3 3 Engine 9 | 1 . 1 . . . 2 . 2 1 . 2 Core 6 | . . . . . 1 1 . 2 . 1 1 Reactor 2 | . . . . . . . . . . 2 . Propulsion 35 | 2 1 2 . . 1 1 . 13 6 2 7 Treads . | . . . . . . . . . . . . Leg 21 | 2 1 2 . . 1 . . 13 1 . 1 Wheel 2 | . . . . . . . . . . . 2 Hover 8 | . . . . . . . . . 5 2 1 Flight 4 | . . . . . . 1 . . . . 3 Utility 33 | 1 1 2 . . 1 2 3 4 1 6 12 Device 13 | . . 2 . . 1 2 1 1 . 3 3 Storage 1 | 1 . . . . . . . . . . . Processor 14 | . 1 . . . . . 1 1 1 2 8 Hackware 2 | . . . . . . . 1 . . . 1 Protection 3 | . . . . . . . . 2 . 1 . Artifact . | . . . . . . . . . . . . Weapon 56 | 2 2 6 . . . 17 . 6 3 7 13 Energy Gun 13 | . . 2 . . . 6 . 1 1 3 . Energy Cannon 4 | . . . . . . 4 . . . . . Ballistic Gun 25 | 2 2 4 . . . 6 . 4 2 3 2 Ballistic Cannon 6 | . . . . . . 1 . 1 . . 4 Launcher . | . . . . . . . . . . . . Special Weapon . | . . . . . . . . . . . . Impact Weapon 1 | . . . . . . . . . . 1 . Slashing Weapon 7 | . . . . . . . . . . . 7 Piercing Weapon . | . . . . . . . . . . . . Special Melee Weapon . | . . . . . . . . . . . . Unidentified Prototypes 12 | . . 1 . . . 4 . . 2 4 1 Parts Lost 28 | . . . . . . 3 . 3 . 1 21 Power 4 | . . . . . . 1 . 1 . . 2 Propulsion 11 | . . . . . . . . 2 . 1 8 Utility 4 | . . . . . . . . . . . 4 Weapon 9 | . . . . . . 2 . . . . 7 Highest Loss Streak 18 | . . . . . . 2 . 2 . 1 18 To Critical Strikes . | . . . . . . . . . . . . Average Slot Usage (%) 89 | . 94 99 100 100 99 71 73 92 99 87 68 Engine 6 | . 14 11 11 11 9 1 7 6 7 2 . Core 1 | . . . . . 1 7 . . . . 1 Leg 14 | . 28 22 22 22 22 . . 22 11 . 2 Hover 5 | . . . . . . . . . 18 28 9 Flight 1 | . . . . . . 8 7 . . . 2 Device 8 | . . 10 11 11 10 16 15 7 7 8 5 Storage 3 | . 14 11 11 11 11 1 . . . . . Processor 5 | . 9 . . . . . 7 7 7 6 14 Hackware 3 | . . . . . . . 4 7 7 6 4 Protection 2 | . . . . . . . . 5 7 4 . Energy Gun 3 | . . 8 . . . 6 . 4 3 5 . Energy Cannon 2 | . . . . . . 12 23 2 . . . Ballistic Gun 24 | . 28 35 44 44 44 15 7 20 25 19 1 Ballistic Cannon 1 | . . . . . . . . 1 . . 8 Slashing Weapon 1 | . . . . . . . . . . . 9 Naked Turns . | . . . . . . . . . . . . Heaviest Build 51 | 13 14 20 20 20 22 39 34 34 34 32 51 Greatest Support 58 | 20 20 23 23 23 23 50 50 58 55 40 40 Greatest Overweight (x) 5 | 1 . . . . . . . 1 1 . 5 Average Overweight (x) . | . . . . . . . . . . . . Largest Inventory Capacity 8 | 8 8 8 8 8 8 8 5 5 5 5 5 Average Capacity 6 | 7 8 8 8 8 8 5 5 5 5 5 5 Most Carried 8 | 1 7 8 7 8 8 8 5 5 5 5 5 Average Carried 5 | . 4 7 7 7 8 3 4 4 4 4 2 Final Capacity 8 | 8 8 8 8 8 8 5 5 5 5 5 5 Final Carried 8 | 1 7 7 7 8 8 5 5 5 5 5 2 Class Distribution -------------------- 37% | Skirmisher 33% | Scavenger-Skirmisher 12% | Gunner 8% | Mutant Dominant Class ---------------- Mutant | -10/Materials Skirmisher | -9/Materials Gunner | -9/Mines Gunner | -9/Exiles Skirmisher | -8/Mines Skirmisher | -8/Materials Skirmisher | -7/Factory Scavenger-Skirmisher | -7/Garrison Scavenger-Skirmisher | -7/Factory Skirmisher | -6/Factory Gunner | -5/Factory Resources | -11 -10 -9 -9 -9 -8 -8 -7 -7 -7 -6 -5 ----------- Run | Yrd Mat Mat Min Exi Min Mat Fac Gar Fac Fac Fac Matter Collected 4074 | 288 124 269 32 . 281 791 46 1092 54 662 435 Remotely 426 | . . . . . . . . . . 302 124 Salvage Created 5617 | 84 333 407 32 . 595 1274 46 1300 54 753 739 Parts 253 | 1 9 24 3 . 30 56 2 60 2 34 32 Haulers Intercepted 9 | . 1 2 . . . 4 . . 1 . 1 Recyclers Shooed 6 | . 1 1 . . . 1 . . . 2 1 Parts Field Recycled . | . . . . . . . . . . . . Retrieved Matter . | . . . . . . . . . . . . Parts Self-Destructed . | . . . . . . . . . . . . Prevented . | . . . . . . . . . . . . Kills | -11 -10 -9 -9 -9 -8 -8 -7 -7 -7 -6 -5 ------- Run | Yrd Mat Mat Min Exi Min Mat Fac Gar Fac Fac Fac Combat Hostiles Destroyed 82 | . 2 8 2 . 12 15 1 26 . 7 9 Melee 9 | . . . . . . . . . . . 9 Guns 65 | . 2 8 2 . 12 14 . 20 . 7 . Cannons 8 | . . . . . . 1 1 6 . . . Classes Destroyed 13 | 1 2 2 . . 3 2 1 1 . 1 . Worker 8 | . . . . . 1 2 . . . 2 3 Builder 2 | . . . . . . . . . . 2 . Hauler 9 | . 1 2 . . . 4 . . 1 . 1 Recycler 11 | 1 2 1 . . . 2 . . . 2 3 Watcher 10 | . . 1 . . . 3 . . . 3 3 Swarmer 19 | . . 4 2 . . . . 3 . 3 7 Grunt 35 | . 2 4 . . 9 9 . 8 . 3 . Brawler 3 | . . . . . 1 . . 1 . 1 . Duelist 4 | . . . . . 2 2 . . . . . Sentry 7 | . . . . . . 3 . 4 . . . Specialist 2 | . . . . . . . . 2 . . . Hunter 9 | . . . . . . 1 . 6 . . 2 Programmer 3 | . . . . . . . 1 2 . . . Best Kill Streak 12 | 1 3 5 2 . 3 11 1 4 1 12 4 Combat Bots Only 10 | . 2 4 2 . 3 10 1 4 . 7 4 Max Kills in Single Turn 5 | 1 1 2 1 . 1 2 1 2 1 5 2 Gunslinging 1 | . . . . . . 1 . 1 . . . Exploded . | . . . . . . . . . . . . Melee 2 | . . . . . . . . . . . 2 Uniques/NPCs Destroyed . | . . . . . . . . . . . . Combat | -11 -10 -9 -9 -9 -8 -8 -7 -7 -7 -6 -5 -------- Run | Yrd Mat Mat Min Exi Min Mat Fac Gar Fac Fac Fac Hostile Shots Fired 653 | . 16 15 8 . 21 99 4 242 . 42 206 Missed 198 | . 3 6 1 . 8 21 3 83 . 14 59 Damage Taken 6093 | . 156 91 54 . 202 1132 16 1658 . 420 2364 Core 1488 | . 21 21 . . . 112 . 245 . . 1089 Absorbed by Shields 240 | . . . . . . . . 84 . . 156 Regen/Repaired (Parts) 187 | . . . . . . . . . 158 29 . Core Remaining (%) 88 | 100 91 . . . 94 79 . . 65 100 . Volleys Fired 279 | 8 21 17 3 . 21 66 2 96 2 30 13 Largest 4 | 2 2 4 4 . 4 4 4 4 4 4 4 Hottest 260 | 40 40 125 89 . 89 260 218 218 159 164 228 Shots Fired 865 | 16 42 68 12 . 84 227 8 273 8 84 43 Gun 750 | 16 42 68 12 . 84 212 2 211 8 84 11 Cannon 115 | . . . . . . 15 6 62 . . 32 Launcher . | . . . . . . . . . . . . Special . | . . . . . . . . . . . . Kinetic 711 | 16 42 51 12 . 84 192 2 211 6 54 41 Thermal 154 | . . 17 . . . 35 6 62 2 30 2 Explosive . | . . . . . . . . . . . . Electromagnetic . | . . . . . . . . . . . . Robot Hit Streak 16 | 3 9 7 4 . 12 15 5 16 11 16 14 Robot Miss Streak 5 | 2 2 4 1 . 3 5 2 4 . 5 1 Penetration Max 1 | . . . . . . . . 1 . . . Secondary Targets 11 | . . . . . 2 8 . 1 . . . Max Gunslinging Chain 2 | . . . . . 1 2 . 1 . . . Shots Hit Robots 575 | 9 29 39 7 . 59 147 3 173 6 58 45 Core Hits 237 | 2 12 19 2 . 32 49 1 58 1 39 22 Critical Kills 3 | . . . . . 1 1 . 1 . . . Critical Parts Destroyed 4 | . 1 1 . . . 1 . . . 1 . Critical Strikes 20 | . 1 1 . . 1 4 . 3 . 1 9 Burn 2 | . . . . . . 2 . . . . . Destroy 7 | . 1 1 . . 1 2 . 1 . 1 . Blast 9 | . . . . . . . . 2 . . 7 Sever 2 | . . . . . . . . . . . 2 Melee Attacks 55 | . . . . . . . . . . . 55 Impact . | . . . . . . . . . . . . Slashing 55 | . . . . . . . . . . . 55 Piercing . | . . . . . . . . . . . . Sneak Attacks . | . . . . . . . . . . . . Combat Hostiles . | . . . . . . . . . . . . Follow-up Attacks 9 | . . . . . . . . . . . 9 Damage Inflicted 10978 | 96 297 516 98 . 900 2232 100 3361 135 1422 1821 Guns 7633 | 96 297 516 98 . 878 2150 . 2162 120 1185 131 Cannons 1979 | . . . . . . 82 100 1199 . . 598 Explosions 501 | . . . . . . . . . . 237 264 Melee 828 | . . . . . . . . . . . 828 Ramming 37 | . . . . . 22 . . . 15 . . Kinetic 7392 | 96 297 393 98 . 878 1963 . 2146 89 713 719 Thermal 2484 | . . 123 . . . 269 100 1215 31 472 274 Explosive . | . . . . . . . . . . . . Electromagnetic 237 | . . . . . . . . . . 237 . Impact . | . . . . . . . . . . . . Slashing 828 | . . . . . . . . . . . 828 Piercing . | . . . . . . . . . . . . Highest Corruption 1 | . . . . . . . . 1 1 . . Average Corruption 1 | . . . . . . . . 1 1 . . Corruption Purged . | . . . . . . . . . . . . Corruption Blocked . | . . . . . . . . . . . . Effects 14 | . . . . . . . . 9 5 . . Message Errors 4 | . . . . . . . . 3 1 . . Matter Fused 3 | . . . . . . . . 3 . . . Heat Flow Errors 1 | . . . . . . . . . 1 . . Energy Discharges 2 | . . . . . . . . 1 1 . . Data Loss (minor) 2 | . . . . . . . . 2 . . . Data Loss (major) 1 | . . . . . . . . . 1 . . Alerts 1 | . . . . . . . . . 1 . . Overload Shots . | . . . . . . . . . . . . Overflow Damage 77 | . . . . . . . . . . . 77 Projectiles 11 | . . . . . . . . . . . 11 Explosions . | . . . . . . . . . . . . Melee 66 | . . . . . . . . . . . 66 Knockbacks 9 | . . . . . . . . 4 . . 5 Impact . | . . . . . . . . . . . . Kinetic 9 | . . . . . . . . 4 . . 5 Secondary . | . . . . . . . . . . . . Self-Inflicted Damage 100 | . . . . . . . . . . 13 87 Shots 3 | . . . . . . . . . . 2 1 Rammed . | . . . . . . . . . . . . Targets Rammed 5 | . . . . . 4 . . . 1 . . Kicked 5 | . . . . . 4 . . . 1 . . Crushed . | . . . . . . . . . . . . Highest Temperature 500 | . 12 97 . . 108 421 162 269 159 152 500 Average Temperature 92 | . 8 34 . . 42 197 87 77 68 44 177 Received Heat Transfer 1284 | . 81 30 . . 135 459 . 426 . 153 . Effects 5 | . . . . . . 2 . 1 . . 2 Shutdowns 1 | . . . . . . 1 . . . . . Energy Bleed 3 | . . . . . . 1 . 1 . . 1 Damage (core) 1 | . . . . . . . . . . . 1 Siege Activations . | . . . . . . . . . . . . Robots Corrupted . | . . . . . . . . . . . . Combat Hostiles . | . . . . . . . . . . . . Parts Fried . | . . . . . . . . . . . . Impact Corruptions . | . . . . . . . . . . . . Robots Melted 1 | . . . . . . 1 . . . . . Combat Hostiles . | . . . . . . . . . . . . Parts Melted 7 | . . 1 . . . 4 1 . . 1 . Heat Transferred 4295 | . . 285 . . . 666 111 1908 75 1075 175 Parts Sabotaged . | . . . . . . . . . . . . Parts Stolen . | . . . . . . . . . . . . Parts Stripped . | . . . . . . . . . . . . Power Chain Reactions 2 | . . . . . . . . . . 2 . Alert | -11 -10 -9 -9 -9 -8 -8 -7 -7 -7 -6 -5 ------- Run | Yrd Mat Mat Min Exi Min Mat Fac Gar Fac Fac Fac Peak Influence 981 | 5 115 272 127 . 245 520 218 981 522 447 398 Initial 514 | . 3 48 47 . . 95 188 152 514 159 159 Average 304 | 1 84 158 80 . 60 337 203 592 421 223 240 Maximum Alert Level 3 | . . 1 . . 1 2 1 3 2 2 1 Low Security (%) 39 | 100 100 62 100 . 90 14 48 10 . 43 33 Level 1 32 | . . 37 . . 9 54 51 11 49 52 66 Level 2 19 | . . . . . . 31 . 41 50 4 . Level 3 8 | . . . . . . . . 36 . . . Level 4 . | . . . . . . . . . . . . Level 5 . | . . . . . . . . . . . . High Security . | . . . . . . . . . . . . Max Security . | . . . . . . . . . . . . Squads Dispatched 8 | . 1 1 . . . 1 . . 1 3 1 Investigation 4 | . . 1 . . . 1 . . 1 1 . Extermination 1 | . . . . . . . . . . . 1 Reinforcement 3 | . 1 . . . . . . . . 2 . Assault . | . . . . . . . . . . . . Garrison . | . . . . . . . . . . . . Intercept . | . . . . . . . . . . . . Searches Triggered . | . . . . . . . . . . . . Construction Impeded . | . . . . . . . . . . . . Haulers Reinforced . | . . . . . . . . . . . . Active Scanning Responses . | . . . . . . . . . . . . Cargo Convoy Interrupts . | . . . . . . . . . . . . Stealth | -11 -10 -9 -9 -9 -8 -8 -7 -7 -7 -6 -5 --------- Run | Yrd Mat Mat Min Exi Min Mat Fac Gar Fac Fac Fac Distress Signals 10 | . . . . . . 6 . . . 3 1 Communications Jammed . | . . . . . . . . . . . . Distress Signals . | . . . . . . . . . . . . Times Spotted 130 | . 4 9 4 . 14 26 1 27 1 18 26 Peak Tracking Total 11 | . 2 5 4 . 3 9 1 7 2 5 11 Tactical Retreats 11 | . . . 1 . 1 1 . 1 . 3 4 Traps | -11 -10 -9 -9 -9 -8 -8 -7 -7 -7 -6 -5 ------- Run | Yrd Mat Mat Min Exi Min Mat Fac Gar Fac Fac Fac Traps Triggered 4 | . . . . . . . . 3 . . 1 Indirectly . | . . . . . . . . . . . . Trap Hack Attempts . | . . . . . . . . . . . . Triggered . | . . . . . . . . . . . . Disarmed . | . . . . . . . . . . . . Reprogrammed . | . . . . . . . . . . . . Reused . | . . . . . . . . . . . . Traps Extracted . | . . . . . . . . . . . . Installed . | . . . . . . . . . . . . Triggered . | . . . . . . . . . . . . Machines | -11 -10 -9 -9 -9 -8 -8 -7 -7 -7 -6 -5 ---------- Run | Yrd Mat Mat Min Exi Min Mat Fac Gar Fac Fac Fac Machines Disabled 10 | . . . . . 1 . . 2 . 5 2 Max in Single Turn 3 | . . . . . 1 . . 1 . 3 2 Garrison Access 2 | . . . . . . . . . . 2 . Garrison Relay 3 | . . . . . . . . 3 . . . Machines Repaired . | . . . . . . . . . . . . Machines Dismantled . | . . . . . . . . . . . . Machines Sabotaged . | . . . . . . . . . . . . Overloaded Fab Kills . | . . . . . . . . . . . . Hacking | -11 -10 -9 -9 -9 -8 -8 -7 -7 -7 -6 -5 --------- Run | Yrd Mat Mat Min Exi Min Mat Fac Gar Fac Fac Fac Machines Accessed 30 | . 3 3 . 1 1 5 1 3 5 8 . Terminals 17 | . 2 3 . . 1 4 . 3 1 3 . Fabricators 3 | . . . . . . . . . 2 1 . Repair Stations 3 | . . . . . . 1 . . 1 1 . Recycling Units 3 | . 1 . . . . . . . 1 1 . Scanalyzers . | . . . . . . . . . . . . Garrison Access 3 | . . . . . . . 1 . . 2 . Total Hacks 75 | . 13 10 . 1 3 14 1 7 12 14 . Successful 42 | . 7 5 . 1 2 5 1 4 7 10 . Failed 33 | . 6 5 . . 1 9 . 3 5 4 . Catastrophic 6 | . . 3 . . 1 1 . . 1 . . Database Lockouts . | . . . . . . . . . . . . Manual 45 | . 11 9 . 1 3 13 . 2 1 5 . Terminals 51 | . 10 10 . . 3 13 . 7 2 6 . Fabricators 4 | . . . . . . . . . 3 1 . Repair Stations 8 | . . . . . . 1 . . 5 2 . Recycling Units 8 | . 3 . . . . . . . 2 3 . Scanalyzers . | . . . . . . . . . . . . Garrison Access 3 | . . . . . . . 1 . . 2 . Terminal Hacks 14 | . 2 3 . 1 1 1 . 3 1 2 . Record 1 | . . . . . . . . . . 1 . Robot Analysis 1 | . . . . . . . . . 1 . . Open Door 1 | . . . . . . . . 1 . . . Branch Access Points 1 | . . . . . 1 . . . . . . Emergency Access Points 1 | . . . . . . . . 1 . . . Terminal Index 3 | . 1 1 . . . 1 . . . . . Alert Level 1 | . . 1 . . . . . . . . . Unreport Threat 2 | . . 1 . . . . . . . 1 . Locate Traps 1 | . 1 . . . . . . . . . . Garrison Registry 1 | . . . . . . . . 1 . . . Derelict Proto ID Bank 1 | . . . . 1 . . . . . . . Fabricator Hacks 1 | . . . . . . . . . . 1 . Network Status 1 | . . . . . . . . . . 1 . Repair Station Hacks 6 | . . . . . . . . . 4 2 . Scan Component 3 | . . . . . . . . . 2 1 . Repair 3 | . . . . . . . . . 2 1 . Recycling Unit Hacks 2 | . 1 . . . . . . . 1 . . Retrieve Components 2 | . 1 . . . . . . . 1 . . Scanalyzer . | . . . . . . . . . . . . Garrison Access Hacks 3 | . . . . . . . 1 . . 2 . Unlock Access 1 | . . . . . . . 1 . . . . Seal Access 2 | . . . . . . . . . . 2 . Unauthorized Hacks 16 | . 4 2 . . 1 4 . 1 1 3 . Terminals 13 | . 3 2 . . 1 4 . 1 . 2 . Botnet 11 | . 2 2 . . 1 3 . 1 . 2 . Operators 2 | . 1 . . . . 1 . . . . . Fabricators . | . . . . . . . . . . . . Repair Stations . | . . . . . . . . . . . . Recycling Units 3 | . 1 . . . . . . . 1 1 . Reject 3 | . 1 . . . . . . . 1 1 . Scanalyzers . | . . . . . . . . . . . . Garrison Access . | . . . . . . . . . . . . Data Cores Recovered . | . . . . . . . . . . . . Used . | . . . . . . . . . . . . Hacking Detections 24 | . 2 3 . . 1 5 1 2 5 5 . Full Trace Events 4 | . . 1 . . . 1 . . 1 1 . Feedback Events . | . . . . . . . . . . . . Feedback Blocked . | . . . . . . . . . . . . Robot Schematics Acquired . | . . . . . . . . . . . . Robots Built . | . . . . . . . . . . . . Authchips . | . . . . . . . . . . . . Time . | . . . . . . . . . . . . Total Robot Build Rating . | . . . . . . . . . . . . Part Schematics Acquired . | . . . . . . . . . . . . Parts Built . | . . . . . . . . . . . . Authchips . | . . . . . . . . . . . . Time . | . . . . . . . . . . . . Total Part Build Rating . | . . . . . . . . . . . . Parts Repaired 3 | . . . . . . . . . 2 1 . Time 110 | . . . . . . . . . 88 22 . Parts Recycled . | . . . . . . . . . . . . Recycled Matter . | . . . . . . . . . . . . Retrieved Matter . | . . . . . . . . . . . . Retrieved Components 11 | . 7 . . . . . . . 4 . . Parts Scanalyzed . | . . . . . . . . . . . . Part Schematics Acquired . | . . . . . . . . . . . . Parts Damaged . | . . . . . . . . . . . . Bothacking | -11 -10 -9 -9 -9 -8 -8 -7 -7 -7 -6 -5 ------------ Run | Yrd Mat Mat Min Exi Min Mat Fac Gar Fac Fac Fac Used RIF Installer 1 | . . . . . . . . 1 . . . Robots Hacked . | . . . . . . . . . . . . Non-combat . | . . . . . . . . . . . . Combat . | . . . . . . . . . . . . Robot Hacks Applied . | . . . . . . . . . . . . Relay Couplers Released 12 | . . . . . . . . 12 . . . Machine Destruction 12 | . . . . . . . . 12 . . . Fabnet Peak Effective % . | . . . . . . . . . . . . Robots Rewired 3 | . . . . . . . . 3 . . . Allies Hacked . | . . . . . . . . . . . . Hacks Repelled . | . . . . . . . . . . . . Allies | -11 -10 -9 -9 -9 -8 -8 -7 -7 -7 -6 -5 -------- Run | Yrd Mat Mat Min Exi Min Mat Fac Gar Fac Fac Fac Total Allies 5 | . . . . . . . . 5 . . . Largest Group 3 | . . . . . . . . 3 . . . Highest-Rated Group 124 | . . . . . . . . 124 . . . Highest-Rated Ally 62 | . . . . . . . . 62 . . . Total Orders . | . . . . . . . . . . . . Ally Attacks 18 | . . . . . . . . 18 . . . Total Damage 666 | . . . . . . . . 666 . . . Kills 2 | . . . . . . . . 2 . . . Allies Corrupted . | . . . . . . . . . . . . Allies Melted . | . . . . . . . . . . . . Intel | -11 -10 -9 -9 -9 -8 -8 -7 -7 -7 -6 -5 ------- Run | Yrd Mat Mat Min Exi Min Mat Fac Gar Fac Fac Fac Robot Analysis Total 1 | . . . . . . . . . 1 . . Derelict Logs Recovered . | . . . . . . . . . . . . Drone Launches . | . . . . . . . . . . . . Drone Recoveries . | . . . . . . . . . . . . Exploration | -11 -10 -9 -9 -9 -8 -8 -7 -7 -7 -6 -5 ------------- Run | Yrd Mat Mat Min Exi Min Mat Fac Gar Fac Fac Fac Turns Passed 6953 | 103 385 261 73 345 1141 774 31 1532 791 631 886 Spaces Moved 5430 | 61 250 134 52 286 652 672 39 989 453 928 914 Core 19 | 6 . . . . . . . . . . 13 Treads . | . . . . . . . . . . . . Legs 2709 | 55 250 134 52 286 652 . . 928 227 . 125 Wheels 117 | . . . . . . . . . . . 117 Hover 1718 | . . . . . . . . . 226 928 564 Flight 867 | . . . . . . 672 39 61 . . 95 Fastest Speed 32 | 50 120 120 120 120 120 50 50 50 40 38 32 Average Speed 83 | 117 120 120 120 120 120 50 50 111 80 39 67 Slowest Speed 260 | 190 120 120 120 120 120 50 50 190 120 40 260 Overloaded Moves . | . . . . . . . . . . . . Propulsion Burnouts . | . . . . . . . . . . . . Robots Hopped 3 | . . . . . . 1 . . . . 2 Cave-ins Triggered . | . . . . . . . . . . . . Exploration Rate (%) 34 | 6 38 20 15 62 90 45 2 98 8 23 11 Regions Visited 11 Branch Regions 3 Pre-discovered Areas . | . . . . . . . . . . . . Known Exits Taken 1 | . . . . . . . 1 . . . . Unknown Exits Taken 9 | 1 1 1 1 1 1 1 . . 1 1 . Scrap Searched 1 | . . . . . 1 . . . . . . Spaces Dug 10 | . . . . . . 7 . . . . 3 Terrain Destroyed 39 | . . . . . . 10 . 2 . . 27 Melee 3 | . . . . . . . . . . . 3 Projectile 23 | . . . . . . 10 . 2 . . 11 AOE 13 | . . . . . . . . . . . 13 Terrain Rammed . | . . . . . . . . . . . . Walls Destroyed . | . . . . . . . . . . . . Machines Disabled . | . . . . . . . . . . . . Actions | -11 -10 -9 -9 -9 -8 -8 -7 -7 -7 -6 -5 --------- Run | Yrd Mat Mat Min Exi Min Mat Fac Gar Fac Fac Fac Total 7196 | 75 296 192 55 289 958 965 43 1239 878 1128 1078 Wait 1118 | . 16 16 1 . 276 172 . 64 386 132 55 Move 5413 | 60 249 133 51 285 651 669 38 988 452 927 910 Hop 3 | . . . . . . 1 . . . . 2 Pick Up 45 | 1 5 6 . 1 . 8 . 7 10 2 5 Fast Attach 99 | 6 1 3 . . 1 17 1 18 7 17 28 Attach 18 | . 1 2 . . . 4 1 1 3 . 6 Detach 6 | . . . . . . 2 . 1 1 1 1 Swap 24 | . 2 6 . . 2 2 1 8 1 1 1 Drop 115 | . 1 9 . 3 3 24 . 27 15 18 15 Fire 279 | 8 21 17 3 . 21 66 2 96 2 30 13 Melee 42 | . . . . . . . . . . . 42 Ram . | . . . . . . . . . . . . Kick 5 | . . . . . 4 . . . 1 . . Crush . | . . . . . . . . . . . . Escape Stasis 5 | . . . . . . . . 5 . . . Rewire 24 | . . . . . . . . 24 . . . Trap . | . . . . . . . . . . . . Miscellaneous . | . . . . . . . . . . . . Route ------- -11/Scrapyard -10/Materials -9/Materials -9/Mines -9/Exiles -8/Mines -8/Materials -7/Factory -7/Garrison (discovered 3 exits: *Fac x3) -7/Factory -6/Factory -5/Factory History --------- Turn | Location | Event 24 | -11/Scrapyard | Discovered new exit (range 16) 104 | -11/Scrapyard | Entered Materials 316 | -10/Materials | Build established: Mutant 486 | -10/Materials | Discovered new exit (range 4) 489 | -10/Materials | Entered another Materials area 489 | -9/Materials | Evolved 2 slots: Weapon x2 732 | -9/Materials | Discovered new exit (range 16) 750 | -9/Materials | Entered Mines 787 | -9/Mines | Met a Derelict bent on vengeance 818 | -9/Mines | Deemed a non-threat by the Exiles lab entrance 818 | -9/Mines | Discovered new exit (range 5) 823 | -9/Mines | Entered Exiles 853 | -9/Exiles | Met 8R-AWN 874 | -9/Exiles | Met EX-HEX 913 | -9/Exiles | Met EX-BIN 937 | -9/Exiles | Build established: Gunner 988 | -9/Exiles | Aligned with FarCom system 989 | -9/Exiles | Given EX-Vault access code 1017 | -9/Exiles | Opened EX-Vault 1024 | -9/Exiles | Found Flying Fortress v7 1050 | -9/Exiles | Warned to stay clear of 0b10 Research branches 1083 | -9/Exiles | Met EX-DEC 1145 | -9/Exiles | Discovered new exit (range 12) 1168 | -9/Exiles | Left Exiles lab with Flying Fortress v7 1168 | -9/Exiles | Entered Mines 1459 | -8/Mines | Build established: Skirmisher 2302 | -8/Mines | Discovered new exit (range 7) 2309 | -8/Mines | Entered Materials 2309 | -8/Materials | Evolved 2 slots: Propulsion x2 2479 | -8/Materials | Destroyed 10 combat bots 3019 | -8/Materials | Discovered new exit (range 11) 3083 | -8/Materials | Entered Factory 3083 | -7/Factory | Evolved 2 slots: Utility x2 3105 | -7/Factory | Identified exit to Garrison 3114 | -7/Factory | Entered Garrison 3125 | -7/Garrison | Found embedded Infiltrators 3142 | -7/Garrison | Triggered checkpoint 3185 | -7/Garrison | Garrison Relay disabled 3380 | -7/Garrison | Triggered checkpoint 3434 | -7/Garrison | Lost 3 allies 3568 | -7/Garrison | Triggered checkpoint 3676 | -7/Garrison | Triggered checkpoint 3699 | -7/Garrison | Discovered new exit (range 14) 3752 | -7/Garrison | Build established: Scavenger-Skirmisher 3782 | -7/Garrison | Garrison Relay disabled 3789 | -7/Garrison | Garrison Relay disabled 3967 | -7/Garrison | Discovered new exit (range 10) 4074 | -7/Garrison | Triggered checkpoint 4268 | -7/Garrison | Triggered checkpoint 4382 | -7/Garrison | Discovered new exit (range 10) 4407 | -7/Garrison | Discovered new exit (range 52) 4407 | -7/Garrison | Discovered new exit (range 11) 4407 | -7/Garrison | Discovered new exit (range 81) 4534 | -7/Garrison | Triggered checkpoint 4586 | -7/Garrison | Installed Relay Interface Framework 4646 | -7/Garrison | Entered Factory 4991 | -7/Factory | Discovered new exit (range 13) 5074 | -7/Factory | Repaired Gauss Rifle 5120 | -7/Factory | Repaired Gatling Laser? 5437 | -7/Factory | Entered another Factory area 5437 | -6/Factory | Evolved 2 slots: Propulsion x2 5716 | -6/Factory | Repaired Gravmag System 5826 | -6/Factory | Destroyed 7 combat bots 6060 | -6/Factory | Discovered new exit (range 7) 6068 | -6/Factory | Entered another Factory area 6068 | -5/Factory | Evolved 2 slots: Power x1, Utility x1 6432 | -5/Factory | Core integrity fell below 50% 6465 | -5/Factory | Lost 18 parts (2p6n4u6w) 6533 | -5/Factory | Core integrity fell below 20% 6560 | -5/Factory | Lost 3 parts (2n1w) 6914 | -5/Factory | Build established: Gunner 6955 | -5/Factory | Core destroyed Last Messages --------------- 06921_ Acquired 12 matter. 06935_ K-01 Serf Wheel blasted off. 06935_ K-01 Serf knocked back. 06935_ K-01 Serf suffers critical hit (Blast). 06935_ Destroyed Lgt. Ion Engine. 06935_ K-01 Serf destroyed. 06939_ Slug penetrates R-10 Processor. 06939_ Destroyed Com. Wheel. 06939_ R-10 Processor suffers critical hit (Blast). 06939_ Destroyed Com. Wheel. 06939_ R-10 Processor knocked back. 06945_ R-10 Processor destroyed. 06945_ R-10 Processor collects Wheel. 06948_ Slug penetrates R-10 Processor. 06950_ Overheating: Energy bleed (-56). 06952_ Destroyed Com. Wheel. 06952_ R-10 Processor suffers critical hit (Blast). 06952_ Destroyed Com. Wheel. 06952_ R-10 Processor destroyed. 06955_ Overheating: Core damaged (-160). Map ----- +----------------------------------------------------+ | ?????????????????????????????????????????????????? | | ?????????????????????????????????????????????????? | | ??????????????????????????????????????#??????????? | | ?????????????????????????????????????????????????? | | ??????????????????????????#??????????????#???????? | | ?????????????????????????????????????????????????? | | ?????????????????????????????????????????????????? | | ##??????????????############################?????? | | #???#?????#????# ## [ #?????? | | #??????????????# """"""""" ## #?????? | | #???????#????#?# ## """"""""" #?????? | | #??############# """"""""" ## #?????? | | #??# #?# ## """"""""" #?????? | | #??# """ #?# """"""""" ## # ????? | | #??# """"" #?# ## """"""""" # ????? | | #??# """"" #?# """"""""" ## #?????? | | #??# ### ## """"""""" #????#? | | #??# ## """"""""" ## #?????? | | #??# #?# ## """"""""" #?????? | | #??# #?# ! ## #?????# | | #########+#############+##;##########+############ | | t | | % | | ! % | | % % % | | % % @ = = | | #########+########;;;#;;;##;#########+############ | | ????## # # # # #?# | | ??#??# ####### # #?# | | ?#???# #????## # """ #?# | | ?????# #????## # """"" #?# | | ###### #????## # """"" #?# | | ] # ##???## # #?# | | # ##????# # """ #?# | | """ # ] ##????# # """"" ### | | """ ###########?????# # """"" #?# | | """ #???????????????# # #?# | | """ #??????#????????# # #?# | | """ #???#???????????# # #?# | | """ #????????#??????###########################?# | | #???????#?????????????????????????? ????????# | | #???????????????????#?#??????????#??????????# | | #???????????????????????????????????????????# | | #???????????????????????????#??????? ???????+ | | ###+##??????????????????????????????#????????? ??# | | ??# #????#???????????????????????????????????????# | | ??# #??????????????#?????????????????????????????# | | ??# #??????????????????????????????????????? ????# | | ### ###??????????????????????????????????????????? | | #?????????????????????????????????????????#? | +----------------------------------------------------+ Best States ------------- Heat Dissipation 62 Energy Generation 28 Energy Capacity 390 Matter Stores 300 Matter Capacity 300 Sight Range 22 Terrain Scan Range 16 Terrain Scan Density 10 Corruption Block 8 Armor Coverage 150 Evasion (%) 63 Targeting Accuracy 34 Core Analysis 6 Recoil Reduction 6 Offensive Hacking 10 Defensive Hacking 10 Item Schematics ----------------- None Robot Schematics ------------------ None Fabricated ------------ Nothing Alien Tech Used ----------------- None Achievements -------------- Ambidextrous Challenges ------------ None Game ------ Seed DimensionalClaymoresSaw Manual? 0 Play Time 01:36:53 Cumulative 95.4 hours Start 2024.04.25 @ 16:20:21 End 2024.04.25 @ 18:00:04 Sessions 1 Manual Loads 0 Difficulty Rogue Special Mode None Game No. 41 Rogue 41 Adventurer 0 Explorer 0 Win Type - Total 0 Types 0/0/0/0/0/0/0/0/0 Lore% 34 Gallery% 51 Achievement% 38 Wizard Run 0 Options --------- Layout 0 ASCII 1 Keyboard 0 Movement Mouse Keybinds 0 Fullscreen 2 Font 18/Terminus Map View 76x50 Zoom Use 0% Tactical HUD 1 Map Filters NONE Filters NONE Steam 1 RUN: 57467ba3-273c-4410-a676-ca6ffc8ae313